[Event "Swedish Championship O50 2022"]
[Site "Uppsala"]
[Date "2022.07.03"]
[Round "2.1"]
[White "Winfridsson, Hakan"]
[Black "Andersson, Bjorn"]
[Result "1-0"]
[ECO "C10"]
[WhiteElo "1960"]
[BlackElo "2281"]
[Annotator "TA"]
[PlyCount "147"]
[EventDate "2022.07.01"]
[EventType "tourn"]
[EventCountry "SWE"]
[SourceTitle "playchess.com"]
[Source "ChessBase"]
[SourceQuality "1"]
[TimeControl "40/5400+30:1800+30"]

{[%evp 12,147,50,27,29,17,17,15,12,19,13,25,25,-7,-8,-7,-6,-12,0,-47,-45,-43,-29,-25,-35,-20,-15,-17,-25,-61,-60,-102,0,0,0,0,0,-27,-31,-204,-196,-195,-133,-143,0,0,0,0,0,0,0,0,27,0,30,28,31,34,101,28,64,64,122,122,144,27,101,37,37,0,0,0,0,0,0,0,8,8,80,80,80,80,80,80,80,80,80,80,29945,29950,29950,80,29962,29963,29963,29964,29964,29965,29968,29969,29969,29971,29973,29972,29973,29974,29976,29972,29972,29970,29969,29954,29954,2193,29944,0,29956,29958,29960,29962,29965,29965,29971,29972,29971,29970,29972,29971,29980,29980,29980,29981,29981,29982,29982,29983,29996,271]} 1. e4 {[%emt 0:00:03]} e6 {[%emt 0:01:25]} 2. d4 {[%emt 0:00:14]} d5 {[%emt 0:00:46]} 3. Nc3 {[%emt 0:00:12]} dxe4 {[%emt 0:01:58]} 4. Nxe4 {[%emt 0:00:16]} Be7 {[%emt 0:00:20]} 5. Bd3 {[%emt 0:01:59]} Nf6 {[%emt 0:00:51]} 6. Nf3 {[%emt 0:04:14]} Nbd7 {[%emt 0:14:59]} 7. c3 {[%emt 0:16:01]} b6 {[%emt 0:00:31] C10: French with 3 Nc3: Unusual Black 3rd moves and 3...dxe4.} 8. O-O {[%emt 0:03:21]} (8. Nxf6+ {with more complications.} Nxf6 9. Ne5 Bb7 10. Qa4+) 8... Bb7 {[%emt 0:00:49]} 9. Qc2 {[%emt 0:07:04]} Bxe4 {[%emt 0:07:19] The position is equal.} 10. Bxe4 {[%emt 0:00:24]} Nxe4 {[%emt 0:00:30]} 11. Qxe4 {[%emt 0:00:03]} O-O {[%emt 0:01:14]} 12. Ne5 {[%emt 0:04:44]} Nxe5 {[%emt 0:01:48]} 13. dxe5 {[%emt 0:00:04]} Qd7 {[%emt 0:01:48]} 14. Be3 {[%emt 0:06:19]} Rfd8 {[%emt 0:06:06] [#]} 15. h4 $146 {[%emt 0:08:52]} (15. c4 $11 {is superior.}) ({Predecessor:} 15. Qc2 Qd3 16. Qxd3 Rxd3 17. Rfd1 Rad8 18. Rxd3 Rxd3 19. Kf1 c5 20. Ke2 Rd5 21. f4 {0-1 (68) Robin,S (2292)-Plotnikov,P (2297) Chess.com INT 2017}) 15... Qd5 {[%emt 0:05:38]} 16. Qf4 {[%emt 0:00:24]} Bc5 {[%emt 0:03:26]} 17. Bxc5 {[%emt 0:02:14]} Qxc5 {[%emt 0:05:48]} 18. Rfd1 {[%emt 0:00:04]} Rd5 {[%emt 0:01:37]} 19. Rxd5 {[%emt 0:01:03]} Qxd5 $11 {[%emt 0:00:24][%mdl 4096] Endgame KQR-KQR} 20. c4 {[%emt 0:00:03]} Qd3 {[%emt 0:00:45]} 21. Rc1 {[%emt 0:01:03]} c5 {[%emt 0:01:26]} ({Black should try} 21... Rd8 $17 22. c5 b5) 22. Rc3 {[%emt 0:03:19]} Qb1+ {[%emt 0:03:06]} 23. Kh2 {[%emt 0:00:09]} Rd8 {[%emt 0:08:13]} 24. Qg5 {[%emt 0:04:41][%cal Rg5d8] [#]} Rd7 {[%emt 0:01:14] White must now prevent ...h6.} 25. h5 $2 {[%emt 0:03:04]} (25. Rg3 $15 g6 26. h5) 25... h6 $19 {[%emt 0:02:17]} (25... Qxa2 $2 26. h6 f5 27. exf6 Qxb2 28. Qe5 Qxc3 29. Qxc3 $18) ({Don't do} 25... Qxb2 26. Rg3 g6 27. Qf6 $16) 26. Qg4 {[%emt 0:05:20]} Rd4 {[%emt 0:02:17]} (26... Qxa2 $2 27. Rg3 f5 28. exf6 Qxb2 29. Qxe6+ Kh8 30. Qxd7 $18) (26... Qxb2 $19 27. Qf3 Qd2) 27. f4 $17 {[%emt 0:00:14]} Qf5 {[%emt 0:04:37]} (27... Qxa2 $2 28. Rg3 Kf8 29. Qxg7+ Ke8 30. Ra3 Qxa3 31. bxa3 $18) (27... Rd1 $17 {( -> ...Rh1+)} 28. Qe2 Rf1) 28. Qxf5 $11 {[%emt 0:00:39]} exf5 {[%emt 0:00:02] KR-KR} 29. Kg3 {[%emt 0:00:17]} Rd2 {[%emt 0:01:10]} 30. Ra3 {[%emt 0:00:18]} Rxb2 {[%emt 0:02:23]} 31. Rxa7 {[%emt 0:00:24]} Rb4 {[%emt 0:01:07]} 32. Ra8+ {[%emt 0:00:29]} Kh7 {[%emt 0:00:08]} 33. Rf8 {[%emt 0:00:11]} Rxc4 {[%emt 0:00:21]} 34. Rxf7 {[%emt 0:00:03]} Ra4 {[%emt 0:01:53]} (34... Kg8 $1 $14 35. Rb7 (35. Rxf5 Re4 $11) 35... Rc3+ 36. Kh2 Rc2) 35. Rb7 {[%emt 0:01:10]} (35. Rxf5 $16 {Threatens to win with Rf8.} Kg8 36. Kf3) 35... Rxa2 {[%emt 0:01:34]} 36. Rxb6 {[%emt 0:00:04]} c4 {[%emt 0:01:00]} (36... Ra3+ $14 37. Kf2 Ra2+ 38. Kf3 Ra3+ 39. Kf2 Kg8) 37. Rc6 $16 {[%emt 0:00:13]} Ra3+ {[%emt 0:00:42]} 38. Kh2 {[%emt 0:00:23]} (38. Kh4 $16) 38... c3 {[%emt 0:03:20]} (38... Rc3 $11 {keeps the balance.}) 39. Rc8 {[%emt 0:00:24]} ({White should play} 39. e6 $16) 39... g5 $1 $14 {[%emt 0:00:58]} 40. fxg5 {[%emt 0:13:37]} (40. e6 $5 {[%cal Re6e7]} Ra7 41. Rxc3 gxf4 42. Rd3 $14) 40... hxg5 {[%emt 0:02:11]} 41. e6 {[%emt 0:31:15] White threatens e7 and mate.} Ra7 {[%emt 0:32:18]} 42. Rxc3 {[%emt 0:00:15]} Re7 {[%emt 0:00:28]} 43. Rc5 {[%emt 0:00:54]} Rxe6 {[%emt 0:00:22]} 44. Rxf5 {[%emt 0:00:07]} Kh6 {[%emt 0:00:00]} (44... Re4 $1 $11) 45. g4 $16 {[%emt 0:00:00]} Ra6 {[%emt 0:00:00]} 46. Kg2 {[%emt 0:00:00]} Rb6 {[%emt 0:00:00]} 47. Rd5 {[%emt 0:00:00]} Re6 {[%emt 0:00:00]} 48. Kf3 {[%emt 0:00:00]} Rf6+ {[%emt 0:00:00]} 49. Ke3 {[%emt 0:00:00]} Rf4 $2 {[%emt 0:03:34][%mdl 8192]} (49... Ra6 $16 50. Ke4 Ra4+ 51. Rd4 Ra6) 50. Rd4 {[%emt 0:00:00]} Rf6 {[%emt 0:01:16] [#]} 51. Ke4 $1 {[%emt 0:00:00] Ke5 would kill now.} Rf4+ $2 {[%emt 0:01:11][%mdl 8192]} (51... Re6+ $16 52. Kf5 Rc6) 52. Ke5 {[%emt 0:00:00]} Rf1 {[%emt 0:01:01]} 53. Rd6+ {[%emt 0:00:00]} Kh7 {[%emt 0:00:04]} 54. Rg6 {[%emt 0:00:00]} Re1+ {[%emt 0:00:12]} 55. Kf5 {[%emt 0:00:00]} Rf1+ {[%emt 0:00:23]} 56. Kxg5 {[%emt 0:00:00]} Rf2 {[%emt 0:00:15]} 57. Ra6 {[%emt 0:00:00]} Rf7 {[%emt 0:00:08]} 58. Rb6 {[%emt 0:00:00]} Rc7 {[%emt 0:00:11]} 59. Re6 {[%emt 0:00:00]} Ra7 {[%emt 0:00:15]} 60. Kf6 {[%emt 0:00:00]} Ra1 {[%emt 0:00:32]} 61. Kf7 {[%emt 0:00:00]} Rg1 {[%emt 0:01:58]} 62. Re4 {[%emt 0:00:00]} (62. Rg6 $142 Ra1 63. Ke6 Ra5 64. Kf6 Rc5 65. Rg5 Rc6+ 66. Kf5 Rc5+ 67. Kf4) 62... Kh6 {[%emt 0:00:27]} 63. Re6+ {[%emt 0:00:00]} Kh7 {[%emt 0:00:16]} 64. Rg6 {[%emt 0:00:00] White mates.} Rf1+ {[%emt 0:00:25]} 65. Ke6 {[%emt 0:00:00]} Rf2 {[%emt 0:00:16]} 66. Rf6 {[%emt 0:00:00]} Rg2 {[%emt 0:00:12]} 67. Kf5 {[%emt 0:00:00]} Kg7 {[%emt 0:00:56]} 68. Rb6 {[%emt 0:00:00]} Ra2 {[%emt 0:00:16]} 69. Rb7+ {[%emt 0:00:00]} Kh8 {[%emt 0:00:15]} 70. Re7 {[%emt 0:00:00]} Ra5+ {[%emt 0:00:07]} 71. Kf6 {[%emt 0:00:00]} Ra6+ {[%emt 0:00:21]} 72. Re6 {[%emt 0:00:00]} Ra8 {[%emt 0:00:18]} 73. g5 {[%emt 0:00:00]} Ra7 {[%emt 0:00:26]} 74. Re8+ {[%emt 0:00:00] Quite a comeback for White.  Weighted Error Value: White=0.17 (very precise) /Black=0.36} 1-0

[Event "Swedish Championship O50 2022"]
[Site "Uppsala"]
[Date "2022.07.04"]
[Round "3.1"]
[White "Andersson, Bjorn"]
[Black "Hautajarvi, Jukka"]
[Result "0-1"]
[ECO "B33"]
[WhiteElo "2281"]
[BlackElo "2044"]
[Annotator "TA"]
[PlyCount "74"]
[EventDate "2022.07.01"]
[EventType "tourn"]
[EventCountry "SWE"]
[SourceTitle "playchess.com"]
[Source "ChessBase"]
[SourceQuality "1"]
[TimeControl "40/5400+30:1800+30"]

{[%evp 14,74,43,15,43,17,36,14,41,24,37,35,26,-29,12,-58,18,-62,-14,-25,-24,-104,-93,-97,-102,-150,-114,-219,-116,-125,-155,-222,-205,-243,-259,-425,-431,-433,-415,-421,-395,-654,-606,-616,-481,-470,-463,-519,-533,-513,-522,-623,-611,-697,-692,-878,-826,-1168,-1137,-1777,-1622,-1597,-1566]} 1. e4 {[%emt 0:10:15]} c5 {[%emt 0:01:46]} 2. Ne2 {[%emt 0:02:09]} e6 {[%emt 0:01:14]} 3. d4 {[%emt 0:01:58]} cxd4 {[%emt 0:00:06]} 4. Nxd4 {[%emt 0:00:39]} Nf6 {[%emt 0:00:20]} 5. Bd3 {[%emt 0:02:10]} Qb6 {[%emt 0:00:54]} 6. Nb3 {[%emt 0:01:46]} Nc6 {[%emt 0:00:23]} 7. Be3 {[%emt 0:00:51] was the old line (7.0-0).} Qc7 {[%emt 0:00:08]} 8. Nc3 {[%emt 0:01:17]} d6 {[%emt 0:01:45] B33: Sicilian: Pelikan and Sveshnikov Variations.} 9. O-O {[%emt 0:05:32]} Be7 {[%emt 0:00:15] [#] was the old line (9...a6).} 10. Rc1 $146 {[%emt 0:01:09]} ({Predecessor:} 10. f4 a6 11. Qf3 O-O 12. Rae1 Nb4 13. a3 Nxd3 14. cxd3 Bd7 15. Rc1 Bc6 16. Nd4 Rac8 17. f5 e5 18. Nde2 Qa5 19. b4 Qd8 20. d4 exd4 21. Bxd4 Re8 22. Qg3 Bf8 23. Nf4 Nxe4 24. Nxe4 Rxe4 25. Bxg7 Bxg7 26. Nh5 Qb6+ 27. Rc5 Kf8 28. Qxd6+ Re7 29. f6 Bxf6 30. Qxf6 {1-0 (30) Kaidanov,G (2560)-Gareyev,T (2587) Indianapolis 2021}) 10... Bd7 {[%emt 0:01:12] The position is equal.} 11. Nb5 {[%emt 0:03:59]} Qb8 {[%emt 0:00:15]} 12. c4 {[%emt 0:00:54]} Ne5 {[%emt 0:00:57]} 13. f3 {[%emt 0:01:24]} (13. c5 $142 d5 14. Nd6+ Bxd6 15. cxd6) 13... O-O {[%emt 0:02:36]} 14. Qe2 {[%emt 0:05:26]} (14. Nc3 $11) 14... Rd8 {[%emt 0:05:08]} ({Black should play} 14... Bxb5 $15 15. cxb5 Nxd3 16. Qxd3 d5) 15. Rfd1 {[%emt 0:00:59]} (15. Bb1 $11) 15... a6 {[%emt 0:01:04]} (15... Nxd3 $15 16. Rxd3 (16. Qxd3 Bxb5 17. cxb5 d5 $15) 16... d5 17. exd5 Bxb5 18. cxb5 Nxd5) 16. Na3 {[%emt 0:05:16]} b5 {[%emt 0:02:51]} 17. cxb5 {[%emt 0:05:55]} (17. c5 $11 {keeps the balance.}) 17... Nxd3 {[%emt 0:00:18]} 18. Qxd3 {[%emt 0:02:54]} axb5 {[%emt 0:01:39]} 19. Qb1 {[%emt 0:01:33]} (19. Qd2 $142) 19... h6 {[%emt 0:02:17]} 20. Nd4 {[%emt 0:04:11] [#]} (20. Bf2 $17) 20... Qb7 {[%emt 0:00:25]} ({Black should try} 20... d5 $1 $19 {...b4 is the strong threat.} 21. exd5 Nxd5) 21. Rd2 {[%emt 0:03:41]} e5 {[%emt 0:03:27]} 22. Ne2 {[%emt 0:04:44]} (22. Nb3 $17) 22... Be6 {[%emt 0:03:09]} 23. Rdc2 {[%emt 0:01:10]} Rd7 {[%emt 0:02:49] Inhibits Rc7.} 24. Rd1 $2 {[%emt 0:06:17]} (24. Rc6 Bd8 25. Qd3) 24... d5 $19 {[%emt 0:04:53]} 25. exd5 {[%emt 0:05:55]} Nxd5 {[%emt 0:01:49]} ({Not} 25... Bf5 $2 26. Ng3 Bg6 27. Bf2 $19) 26. Bf2 {[%emt 0:01:16]} Bf5 {[%emt 0:01:42]} 27. Rc8+ $2 {[%emt 0:02:59]} (27. Ng3 Bxc2 28. Nxc2) 27... Rxc8 {[%emt 0:01:12] Black is clearly winning.} 28. Qxf5 {[%emt 0:00:06]} Bxa3 {[%emt 0:00:44]} 29. bxa3 {[%emt 0:00:17]} Nf6 {[%emt 0:00:30][%cal Bd5f6,Bf6d7,Bd7c5,Bc5d3][%mdl 32]} 30. Rxd7 {[%emt 0:03:13]} Qxd7 {[%emt 0:00:18]} 31. Qxd7 {[%emt 0:00:21]} Nxd7 {[%emt 0:00:09][%mdl 4096] Endgame KRN-KBN} 32. Be3 {[%emt 0:00:13]} Rc2 {[%emt 0:00:22][%csl LRa2,LRe2]} 33. Kf1 {[%emt 0:00:22]} Rxa2 {[%emt 0:00:38]} 34. Bc1 {[%emt 0:00:37]} Nc5 {[%emt 0:00:14] [#] Threatens to win with ...Nd3.} 35. Be3 {[%emt 0:01:06]} Ra1+ {[%emt 0:00:28]} 36. Kf2 {[%emt 0:00:14]} Nd3+ {[%emt 0:00:07]} 37. Kg3 {[%emt 0:00:10]} Rxa3 {[%emt 0:00:14] Weighted Error Value: White=0.86/Black=0.21 (precise)} 0-1

[Event "Swedish Championship O50 2022"]
[Site "Uppsala"]
[Date "2022.07.05"]
[Round "4.1"]
[White "Winfridsson, Hakan"]
[Black "Hautajarvi, Jukka"]
[Result "0-1"]
[ECO "B10"]
[WhiteElo "1960"]
[BlackElo "2044"]
[Annotator "TA"]
[PlyCount "68"]
[EventDate "2022.07.01"]
[EventType "tourn"]
[EventCountry "SWE"]
[SourceTitle "playchess.com"]
[Source "ChessBase"]
[SourceQuality "1"]
[TimeControl "40/5400+30:1800+30"]

{[%evp 9,68,10,13,13,15,8,8,0,0,0,0,-38,-37,-46,-51,-63,-61,-70,-68,-81,-72,-81,-70,-89,-72,-76,-60,-59,-58,-57,-59,-60,-59,-85,-85,-82,-79,-79,-72,-88,-88,-104,-104,-583,-583,-579,-562,-868,-875,-898,-903,-887,-892,-975,-979,-918,-911,-892,-882,-29997,-29998]} 1. e4 {[%emt 0:00:05]} c6 {[%emt 0:00:25]} 2. Nf3 {[%emt 0:00:18]} d5 {[%emt 0:00:10]} 3. exd5 {[%emt 0:00:08]} cxd5 {[%emt 0:00:06]} 4. Ne5 {[%emt 0:00:12]} Nf6 {[%emt 0:00:39]} 5. d4 {[%emt 0:00:11]} g6 {[%emt 0:02:55]} 6. c3 {[%emt 0:00:14] B10: Caro-Kann: 2 d3 and 2 c4.} Bg7 {[%emt 0:00:08]} 7. Bd3 {[%emt 0:00:11]} Nc6 {[%emt 0:01:20]} 8. f4 {[%emt 0:00:13] The position is equal.} Qc7 {[%emt 0:03:22]} 9. O-O {[%emt 0:00:27]} Bf5 {[%emt 0:00:20] [#]} 10. Kh1 $146 {[%emt 0:09:19]} ({Predecessor:} 10. Na3 O-O 11. Nc2 e6 12. Bxf5 exf5 13. Ne3 Rad8 14. Bd2 Ne4 15. Be1 f6 16. Nd3 {0-1 (47) Nielsen,L (2233)-Agrest,E (2590) Helsingor 2009}) 10... e6 {[%emt 0:05:27]} 11. Bxf5 {[%emt 0:01:16]} exf5 {[%emt 0:00:40]} 12. Nd2 {[%emt 0:00:04]} O-O {[%emt 0:00:10]} 13. Ndf3 {[%emt 0:01:15]} Rad8 {[%emt 0:00:31]} 14. Qd3 {[%emt 0:11:13]} Ne4 {[%emt 0:01:30]} 15. Be3 {[%emt 0:17:32]} Rfe8 {[%emt 0:11:03]} 16. Bg1 {[%emt 0:01:53]} Bh6 {[%emt 0:02:29]} 17. g3 {[%emt 0:00:09]} f6 {[%emt 0:00:15]} 18. Nxc6 {[%emt 0:00:13]} Qxc6 {[%emt 0:00:13]} 19. a4 {[%emt 0:02:02]} Bf8 {[%emt 0:03:46]} 20. Rfc1 {[%emt 0:07:03]} Rc8 {[%emt 0:00:22]} 21. a5 {[%emt 0:05:37]} a6 {[%emt 0:01:51]} 22. Nd2 {[%emt 0:04:29]} Nxd2 {[%emt 0:01:32] Black is more active.} 23. Qxd2 {[%emt 0:06:26]} Qb5 {[%emt 0:00:33]} 24. Be3 {[%emt 0:04:00]} Re4 {[%emt 0:09:22]} 25. Re1 {[%emt 0:00:14]} Rce8 {[%emt 0:00:23]} 26. Kg2 $2 {[%emt 0:00:23][%mdl 8192] [#]} (26. b4 $17 {is more resistant.}) 26... Rxe3 $1 $19 {[%emt 0:00:24][%mdl 512]} 27. Rxe3 {[%emt 0:07:16]} Rxe3 {[%emt 0:01:55]} 28. Qxe3 {[%emt 0:00:02] Hoping for Qe6+.} Qxb2+ {[%emt 0:00:15]} 29. Kh3 {[%emt 0:00:06]} Qxa1 {[%emt 0:00:08]} 30. Qe6+ {[%emt 0:00:07]} Kg7 {[%emt 0:00:22]} 31. Qd7+ {[%emt 0:00:03]} Kh6 {[%emt 0:00:13]} 32. Qxd5 {[%emt 0:00:05]} Qxc3 {[%emt 0:02:55]} 33. Qxb7 {[%emt 0:00:12]} Qd3 {[%emt 0:00:32] [#] ( -> ...Qe2)} 34. d5 {[%emt 0:00:10]} Qf1+ {[%emt 0:00:07] White did not feel at home in the position after the opening.  Weighted Error Value: White=0.75/Black=0.02 (flawless)} 0-1

[Event "Swedish Championship O50 2022"]
[Site "Uppsala"]
[Date "2022.07.06"]
[Round "5.1"]
[White "Hautajarvi, Jukka"]
[Black "Westerlund, Ola"]
[Result "1/2-1/2"]
[ECO "E65"]
[WhiteElo "2044"]
[BlackElo "1880"]
[Annotator "TA"]
[PlyCount "46"]
[EventDate "2022.07.01"]
[EventType "tourn"]
[EventCountry "SWE"]
[SourceTitle "playchess.com"]
[Source "ChessBase"]
[SourceQuality "1"]
[TimeControl "40/5400+30:1800+30"]

{[%evp 20,33,20,16,15,15,15,10,10,7,7,8,8,13,12,27]} 1. Nf3 {[%emt 0:00:30]} g6 {[%emt 0:02:19]} 2. g3 {[%emt 0:02:05]} Bg7 {[%emt 0:01:20]} 3. d4 {[%emt 0:00:29]} Nf6 {[%emt 0:01:20]} 4. Bg2 {[%emt 0:00:38]} O-O {[%emt 0:01:21]} 5. O-O {[%emt 0:00:07]} d6 {[%emt 0:01:00]} 6. c4 {[%emt 0:00:32]} c5 {[%emt 0:00:23]} 7. dxc5 {[%emt 0:00:49]} dxc5 {[%emt 0:00:06]} 8. Nc3 {[%emt 0:00:07]} Nc6 {[%emt 0:02:12]} 9. Be3 {[%emt 0:02:58]} Be6 {[%emt 0:00:12]} 10. Qa4 {[%emt 0:04:40]} Qb6 {[%emt 0:02:34]} 11. Qb5 {[%emt 0:00:20] The position is equal.} Nd7 {[%emt 0:06:45] E65: King's Indian: Fianchetto: 6...c5 7 0-0 without d5 by White.} 12. Ng5 {[%emt 0:20:02]} Nd4 {[%emt 0:36:37]} 13. Bxd4 {[%emt 0:06:32]} cxd4 {[%emt 0:01:35]} 14. Nxe6 {[%emt 0:08:21]} dxc3 {[%emt 0:03:50]} 15. Nxg7 {[%emt 0:00:26]} (15. Qxd7 $2 cxb2 16. Rad1 (16. Nxg7 $2 bxa1=R 17. Rxa1 Kxg7 $19) 16... Qxe6 17. Qxe6 fxe6 18. Bxb7 Rab8 $17) 15... Qxb5 {[%emt 0:03:30]} 16. cxb5 {[%emt 0:00:10][%cal Ob2c3]} cxb2 {[%emt 0:00:03] [#]} 17. Rab1 $1 {[%emt 0:00:11] [#] An even fight not without its subleties.  Weighted Error Value: White=0.01 (flawless) /Black=0.00 (flawless)} {Predecessor:} Nc5 $146 18. Rxb2 Kxg7 19. Rc1 Rac8 20. b6 axb6 21. Rxb6 Rc7 22. Bf3 Ra8 23. Rb5 Rac8 {½-½ (49) Sygulski,P (2182)-Mytych,R (1768) Czudec 2016} 1/2-1/2